Cogmind - Beta 17 @@@ ROGUE MODE // 2026.07.29 @ 13:04:39 Player: Akl Result: Destroyed by S-27 Virus with Autogun Performance ------------- Evolutions (6) 3000 Regions Visited (12) 2400 Robots Destroyed (78) 390 Value Destroyed (3627) 3627 Prototype IDs (8) 160 Alien Tech Used (0) 0 Bonus (1979) 1979 TOTAL SCORE: 11556 Bonus ------- Follower Combat Kills 1353 Built Enhanced Grunts 300 Met R17 at Cetus 500 Friendly Fire -174 Cogmind --------- Core Integrity 0/1150 Matter 258/300 Energy 100/100 System Corruption 27% Temperature Cool (0) Movement Core (100) Ox1 Location -4/Factory Parts ------- > --- POWER (2) -------- (None) > --- PROPULSION (4) --- (None) > --- UTILITY (10) ----- Core Analyzer > --- WEAPON (3) ------- Improved Remote Datajack > --- INVENTORY (5) ---- Particle Reactor Particle Reactor High-capacity Storage Unit Sapper Charge Peak State ------------ > --- POWER ------------ Particle Reactor Quantum Reactor > --- PROPULSION ------- Improved Treads Improved Treads Medium Treads Improved Medium Treads > --- UTILITY ---------- Advanced Heat Sink Large Storage Unit Advanced Visual Processing Unit Improved Signal Interpreter Targeting Computer Improved Targeting Computer Core Analyzer Armor Integrity Analyzer Improved Medium Armor Plating Centrium Medium Armor Plating > --- WEAPON ----------- Advanced Variable Charge Gun Advanced Variable Charge Gun Advanced KE Penetrator > --- INVENTORY -------- Particle Reactor Particle Reactor High-capacity Storage Unit Phase Shifter Improved Medium Armor Plating Advanced Variable Charge Gun Railgun Railgun Chainsword Chainsword Sapper Charge [Rating: 96] Favorites ----------- Power Quantum Reactor Engine Light Angular Momentum Engine Power Core Light Nuclear Core Reactor Quantum Reactor Propulsion Aluminum Leg Treads Improved Treads Leg Aluminum Leg Wheel Compact Wheel Utility Large Storage Unit Device Advanced Heat Sink Storage Large Storage Unit Processor Improved Signal Interpreter Hackware Hacking Suite Protection Centrium Medium Armor Plating Weapon Ripper Energy Gun Gatling Laser Ballistic Gun Flak Gun Ballistic Cannon Heavy Gauss Cannon Launcher Thermoblaster Special Weapon Plasma Flamer Slashing Weapon Ripper Build | -11 -10 -9 -8 -7 -7 -6 -5 -5 -5 -5 -5 -4 ------- Run | Yrd Mat Mat Mat Fac Low Zio Pro Fac Ext Cet Arc Fac Slots Evolved 12 | . . 2 2 2 . . . 4 . . . 2 Power 1 | . . . . . . . . 1 . . . . Propulsion 2 | . . 2 . . . . . . . . . . Utility 8 | . . . 1 2 . . . 3 . . . 2 Weapon 1 | . . . 1 . . . . . . . . . Parts Attached 147 | 7 6 6 6 25 6 . 2 7 56 6 4 16 Power 20 | 1 . 1 1 3 . . . 2 10 1 1 . Engine 9 | 1 . 1 1 . . . . . 6 . . . Core 9 | . . . . 3 . . . 2 4 . . . Reactor 2 | . . . . . . . . . . 1 1 . Propulsion 46 | 3 3 2 2 9 1 . . 1 21 . 1 3 Treads 7 | . . . . 1 . . . . 5 . 1 . Leg 31 | 2 2 2 2 2 1 . . 1 16 . . 3 Wheel 8 | 1 1 . . 6 . . . . . . . . Hover . | . . . . . . . . . . . . . Flight . | . . . . . . . . . . . . . Utility 30 | 1 2 . . 7 3 . . 4 6 1 1 5 Device 9 | . 1 . . 2 . . . 1 3 . . 2 Storage 4 | 1 1 . . 1 . . . . 1 . . . Processor 11 | . . . . 4 3 . . 1 2 . . 1 Hackware 1 | . . . . . . . . 1 . . . . Protection 5 | . . . . . . . . 1 . 1 1 2 Artifact . | . . . . . . . . . . . . . Weapon 51 | 2 1 3 3 6 2 . 2 . 19 4 1 8 Energy Gun 21 | 1 1 2 2 2 1 . . . 7 1 1 3 Energy Cannon . | . . . . . . . . . . . . . Ballistic Gun 16 | 1 . 1 1 4 1 . . . 3 3 . 2 Ballistic Cannon 2 | . . . . . . . . . 1 . . 1 Launcher 1 | . . . . . . . . . 1 . . . Special Weapon 3 | . . . . . . . 2 . . . . 1 Impact Weapon . | . . . . . . . . . . . . . Slashing Weapon 8 | . . . . . . . . . 7 . . 1 Piercing Weapon . | . . . . . . . . . . . . . Special Melee Weapon . | . . . . . . . . . . . . . Unidentified Prototypes 3 | . . . . . . . . . . 3 . . Corrupted Parts 2 | . . . . . . . . . . . . 2 System Corruption 11 | . . . . . . . . . . . . 11 Parts Lost 99 | . 2 2 11 15 6 . . . 30 1 2 30 Power 15 | . . 1 1 1 1 . . . 8 1 . 2 Propulsion 32 | . 2 . 4 7 2 . . . 9 . 1 7 Utility 18 | . . . 1 1 1 . . . 3 . 1 11 Weapon 34 | . . 1 5 6 2 . . . 10 . . 10 Highest Loss Streak 23 | . 2 2 6 7 6 . . . 9 1 2 23 To Critical Strikes 2 | . . . 1 . . . . . 1 . . . Average Backups 12 | 2 8 12 17 12 10 10 11 8 13 13 13 7 Power 1 | 1 1 . 1 2 2 2 2 . 2 2 1 2 Propulsion . | . 2 1 1 . . . . . . 1 1 . Utility 5 | . 1 3 8 6 6 6 6 3 5 6 5 2 Weapon 4 | 1 4 6 6 3 2 2 3 5 5 4 5 3 Tool/Special . | . . . . . . . . . . . . . Unused Backups 15 | . . . . 1 . . . . 5 5 1 3 Power 5 | . . . . . . . . . 2 . 1 2 Propulsion 1 | . . . . . . . . . . . . 1 Utility 4 | . . . . 1 . . . . 2 1 . . Weapon 5 | . . . . . . . . . 1 4 . . Tool/Special . | . . . . . . . . . . . . . Average Slot Usage (%) 89 | . 97 97 79 91 87 76 76 96 91 99 98 75 Engine 3 | . 14 10 8 2 . . . . 3 5 1 . Core 1 | . . . . 3 3 . . 10 4 . . . Reactor 1 | . . . . . . . . . . 4 9 8 Treads 5 | . . . . 2 . . . . 5 23 21 12 Leg 13 | . 17 41 34 14 6 7 7 9 14 . . 2 Wheel 5 | . 8 . . 9 18 15 15 11 . . . . Device 4 | . 13 11 3 4 . . . 4 5 . . 5 Storage 6 | . 14 11 9 7 7 7 7 5 5 5 5 4 Processor 20 | . . . . 22 25 23 23 22 26 31 29 20 Hackware 1 | . . . . . . . . 4 5 5 . . Protection 1 | . . . . . . . . 4 . 2 10 8 Energy Gun 8 | . 14 11 20 8 14 15 8 5 3 . 10 7 Ballistic Gun 6 | . 14 10 3 12 7 7 7 5 2 . 5 3 Special Weapon 1 | . . . . . . . 5 5 . . . . Slashing Weapon 3 | . . . . . . . . . 7 15 . . Peak Build Rating 96 | 6 8 13 19 31 35 25 30 55 76 77 88 96 Average Rating 41 | 4 7 11 16 27 28 25 25 53 59 65 85 74 On Entrance 33 | . 6 8 13 14 31 25 25 30 55 57 77 88 Avg Prop Armor Cover (%) 8 | . 9 . . 9 7 9 8 7 7 . . 6 Naked Turns . | . . . . . . . . . . . . . Heaviest Build 90 | 14 50 52 55 37 36 31 31 50 62 70 88 90 Greatest Support 104 | 20 20 40 50 48 48 32 32 32 96 96 104 104 Greatest Overweight (x) 16 | 2 16 2 1 2 3 . . 1 3 . 1 4 Average Overweight (x) . | . 1 1 1 . . . . 1 . . . . Largest Inventory Capacity 20 | 8 20 20 20 20 15 15 15 15 15 15 15 15 Average Capacity 15 | 7 18 20 20 15 15 15 15 15 15 15 15 13 Most Carried 20 | 5 11 15 20 19 13 10 15 14 15 15 15 13 Average Carried 12 | 2 8 12 17 12 10 10 11 9 14 14 14 8 Final Capacity 20 | 8 20 20 20 15 15 15 15 15 15 15 15 5 Final Carried 20 | 5 11 15 20 13 10 10 15 9 15 15 14 4 Class Distribution -------------------- 41% | Scavenger-Gunner 26% | Scavenger-Mutant 18% | Mutant 8% | Gunner Dominant Class ---------------- Mutant | -10/Materials Mutant | -9/Materials Gunner | -8/Materials Scavenger-Gunner | -7/Factory Scavenger-Gunner | -7/Lower Caves Scavenger-Gunner | -6/Zion Scavenger-Gunner | -5/Proximity Caves Scavenger-Gunner | -5/Factory Scavenger-Mutant | -5/Extension Scavenger-Mutant | -5/Cetus Scavenger-Gunner | -5/Archives Scavenger-Gunner | -4/Factory Resources | -11 -10 -9 -8 -7 -7 -6 -5 -5 -5 -5 -5 -4 ----------- Run | Yrd Mat Mat Mat Fac Low Zio Pro Fac Ext Cet Arc Fac Matter Collected 2388 | 278 92 179 148 490 99 . 56 42 647 72 59 226 Remotely . | . . . . . . . . . . . . . Salvage Created 4169 | 162 142 421 312 499 135 . . 42 1582 . 176 698 Parts 185 | 16 13 13 18 23 10 . . . 51 . 6 35 Haulers Intercepted . | . . . . . . . . . . . . . Recyclers Shooed 4 | . . . . 1 . . . . . . . 3 Parts Field Recycled . | . . . . . . . . . . . . . Retrieved Matter . | . . . . . . . . . . . . . Parts Self-Destructed 15 | . . . . . 8 . 7 . . . . . Prevented . | . . . . . . . . . . . . . Parts Restored . | . . . . . . . . . . . . . Kills | -11 -10 -9 -8 -7 -7 -6 -5 -5 -5 -5 -5 -4 ------- Run | Yrd Mat Mat Mat Fac Low Zio Pro Fac Ext Cet Arc Fac Combat Hostiles Destroyed 67 | . 5 7 6 11 3 . . 1 22 . 2 10 Melee 16 | . . . . . . . . . 15 . . 1 Guns 49 | . 5 7 6 11 3 . . 1 7 . 2 7 AOE 2 | . . . . . . . . . . . . 2 Classes Destroyed 9 | 2 2 1 1 1 1 . . . 1 . . . Builder 2 | . . . . . . . . . 2 . . . Tunneler 4 | 4 . . . . . . . . . . . . Recycler 4 | 1 . 1 . . . . . . . . . 2 Swarmer 7 | . 3 . . . . . . . . . . 4 Grunt 34 | . 2 6 2 7 2 . . . 13 . . 2 Duelist 2 | . . . . . 1 . . . . . . 1 Sentry 14 | . . 1 1 1 . . . 1 7 . 2 1 Hunter 6 | . . . 3 1 . . . . 2 . . . Programmer 4 | . . . . 2 . . . . . . . 2 Butcher 1 | . . . . . . . . . 1 . . . Best Kill Streak 5 | 5 3 4 3 5 3 . . 1 5 . 1 5 Combat Bots Only 5 | . 3 3 3 5 3 . . 1 4 . 1 4 Max Kills in Single Turn 4 | 1 2 2 1 1 1 . . 1 1 . 1 4 Gunslinging 1 | . 1 . . . . . . . . . . 1 Exploded 2 | . . . . . . . . . . . . 2 Melee 1 | . . . . . . . . . 1 . . 1 Uniques/NPCs Destroyed . | . . . . . . . . . . . . . Combat | -11 -10 -9 -8 -7 -7 -6 -5 -5 -5 -5 -5 -4 -------- Run | Yrd Mat Mat Mat Fac Low Zio Pro Fac Ext Cet Arc Fac Hostile Shots Fired 912 | . 46 54 85 146 36 . . 6 255 10 20 254 Missed 228 | . 13 18 18 41 8 . . 2 61 1 1 65 Hits 684 | . 33 36 67 105 28 . . 4 194 9 19 189 Melee 7 | . . . . . 5 . . . . . . 2 Projectile 677 | . 33 36 67 105 23 . . 4 194 9 19 187 Critical Strikes 29 | . . 1 3 3 1 . . . 10 3 . 8 Damage Taken 13300 | . 396 466 880 1476 521 . . 91 4289 260 512 4409 Core 2601 | . 95 70 144 169 79 . . . 795 68 29 1152 Absorbed by Shields 246 | . . . . . . . . . 188 58 . . Redirected to Shielding 60 | . . . . . . . . . . . . 60 Core Remaining (%) 65 | 100 62 82 73 . . . 64 . . . 10 . Volleys Fired 194 | 6 21 20 20 37 8 . 12 3 30 . 5 32 Largest 3 | 2 2 2 3 3 3 . 3 3 3 . 3 3 Hottest 416 | 70 70 68 135 158 173 . 180 208 416 . 195 195 Shots Fired 453 | 11 36 38 53 104 22 . 21 9 70 . 16 73 Gun 420 | 11 36 38 53 104 22 . 12 6 64 . 16 58 Cannon 13 | . . . . . . . . . 2 . . 11 Launcher 3 | . . . . . . . . . 3 . . . Special 17 | . . . . . . . 9 3 1 . . 4 Kinetic 209 | 6 15 18 15 77 9 . 4 3 25 . 6 31 Thermal 191 | 5 13 . 22 22 13 . 17 6 45 . 10 38 Explosive . | . . . . . . . . . . . . . Electromagnetic 49 | . 8 20 16 5 . . . . . . . . Robot Hit Streak 26 | 3 8 8 8 14 6 . . 26 12 . 7 8 Robot Miss Streak 5 | 1 2 4 3 3 5 . . . 3 . 1 2 Penetration Max . | . . . . . . . . . . . . . Secondary Targets 10 | . 1 . 1 1 2 . . . 3 . . 2 Max Gunslinging Chain 2 | . 1 . 1 1 1 . . . 1 . . 2 Shots Hit Robots 378 | 7 26 27 33 74 18 . . 7 120 . 12 54 Core Hits 194 | 6 9 18 18 33 10 . . 9 54 . 9 28 Critical Kills 2 | . . . . . . . . . . . 2 . Critical Parts Destroyed 1 | . . . . . . . . . 1 . . . Critical Strikes 25 | . 1 . 1 . . . . . 20 . 2 1 Burn 6 | . 1 . 1 . . . . . 3 . . 1 Destroy 3 | . . . . . . . . . 1 . 2 . Sever 16 | . . . . . . . . . 16 . . . Melee Attacks 102 | . . . . . . . . . 90 1 . 11 Impact . | . . . . . . . . . . . . . Slashing 102 | . . . . . . . . . 90 1 . 11 Piercing . | . . . . . . . . . . . . . Sneak Attacks 5 | . . . . . . . . . 5 . . . Combat Hostiles . | . . . . . . . . . . . . . Follow-up Attacks 13 | . . . . . . . . . 13 . . . Damage Inflicted 9937 | 93 330 447 460 1331 291 . . 169 4114 . 355 2347 Guns 5387 | 93 330 437 460 1199 291 . . 145 1028 . 355 1049 Cannons 354 | . . . . . . . . . 26 . . 328 Explosions 1124 | . . . . 129 . . . . 273 . . 722 Melee 2991 | . . . . . . . . . 2743 . . 248 Ramming 57 | . . 10 . 3 . . . . 44 . . . Kinetic 2762 | 44 152 205 149 886 120 . . 67 366 . 166 607 Thermal 3520 | 49 99 . 177 382 171 . . 102 961 . 189 1390 Explosive . | . . . . . . . . . . . . . Electromagnetic 607 | . 79 232 134 60 . . . . . . . 102 Impact . | . . . . . . . . . . . . . Slashing 2991 | . . . . . . . . . 2743 . . 248 Piercing . | . . . . . . . . . . . . . Highest Corruption 27 | . . 2 . 2 2 2 2 . 1 1 1 27 Average Corruption 2 | . . 1 . 1 2 2 2 . 1 1 1 13 Corruption Purged . | . . . . . . . . . . . . . Corruption Blocked . | . . . . . . . . . . . . . Effects 51 | . . . . 4 10 1 11 . 2 6 3 14 Message Errors 15 | . . . . 3 2 . 3 . . 2 . 5 Matter Fused 10 | . . . . . 2 1 1 . . 2 1 3 Heat Flow Errors 6 | . . . . . 1 . 1 . 1 1 1 1 Energy Discharges 6 | . . . . 1 1 . 4 . . . . . Data Loss (minor) 4 | . . . . . 2 . . . . 1 . 1 Data Loss (major) 2 | . . . . . . . . . 1 . . 1 Misfires 3 | . . . . . . . 2 . . . 1 . Alerts 1 | . . . . . 1 . . . . . . . Misdirections 3 | . . . . . . . . . . . . 3 Weapon Failures 1 | . . . . . 1 . . . . . . . Overload Shots . | . . . . . . . . . . . . . Overflow Damage 481 | . . . . 5 . . . . 63 . . 413 Projectiles . | . . . . . . . . . . . . . Explosions 416 | . . . . 5 . . . . . . . 411 Melee 65 | . . . . . . . . . 63 . . 2 Knockbacks 2 | . . . . 1 . . . . 1 . . . Impact 2 | . . . . 1 . . . . 1 . . . Kinetic . | . . . . . . . . . . . . . Secondary . | . . . . . . . . . . . . . Self-Inflicted Damage 300 | . . . . 41 . . . . . . . 259 Shots 4 | . . . . 1 . . . . . . . 3 Rammed 2 | . . . . 1 . . . . 1 . . . Targets Rammed 9 | . . 3 . 1 . . . . 5 . . . Kicked 7 | . . 3 . . . . . . 4 . . . Crushed . | . . . . . . . . . . . . . Highest Temperature 721 | 18 222 19 334 321 498 . 263 144 721 217 275 322 Average Temperature 121 | 7 84 8 140 96 260 . 81 76 155 118 140 118 Received Heat Transfer 3366 | . 198 246 162 627 186 . . 18 1275 31 54 569 Effects 12 | . 3 . 1 3 1 . . . 4 . . . Shutdowns 2 | . . . . . . . . . 2 . . . Interference 7 | . 3 . . 3 . . . . 1 . . . Matter Decay 1 | . . . 1 . . . . . . . . . Damage (major) 1 | . . . . . 1 . . . . . . . Damage (core) 1 | . . . . . . . . . 1 . . . Siege Activations . | . . . . . . . . . . . . . Martial Activations . | . . . . . . . . . . . . . Shielding Activations . | . . . . . . . . . . . . . Robots Disrupted . | . . . . . . . . . . . . . Combat Hostiles . | . . . . . . . . . . . . . Robots Corrupted . | . . . . . . . . . . . . . Combat Hostiles . | . . . . . . . . . . . . . Parts Fried 2 | . . 1 . . . . . . . . . 1 Impact Corruptions . | . . . . . . . . . . . . . Robots Melted . | . . . . . . . . . . . . . Combat Hostiles . | . . . . . . . . . . . . . Parts Melted 7 | . . . . 2 . . . . 5 . . . Heat Transferred 6238 | 148 370 . 555 705 408 . . 335 1833 . 259 1625 Parts Sabotaged . | . . . . . . . . . . . . . Parts Stolen . | . . . . . . . . . . . . . Parts Stripped . | . . . . . . . . . . . . . Power Chain Reactions 1 | . . . . 1 . . . . . . . . Alert | -11 -10 -9 -8 -7 -7 -6 -5 -5 -5 -5 -5 -4 ------- Run | Yrd Mat Mat Mat Fac Low Zio Pro Fac Ext Cet Arc Fac Maximum Alert Level 2 | . . . . . . . . . . 1 . 2 Low Security (%) 95 | 100 100 100 100 100 . . . 100 100 90 100 62 Level 1 3 | . . . . . . . . . . 9 . 30 Level 2 . | . . . . . . . . . . . . 6 Level 3 . | . . . . . . . . . . . . . Level 4 . | . . . . . . . . . . . . . Level 5 . | . . . . . . . . . . . . . High Security . | . . . . . . . . . . . . . Max Security . | . . . . . . . . . . . . . Peak Influence 461 | 15 95 61 50 85 . . . 30 186 210 90 461 Initial 73 | . 3 1 18 . . . . . 1 73 30 . Average 51 | 3 35 13 11 18 . . . 3 59 117 24 142 Influence Increases 3501 | 25 211 185 197 301 70 . . 33 1283 416 124 656 Destroy 0b10 Robot/C 1800 | . 100 140 120 220 60 . . 20 680 180 80 200 Destroy 0b10 Robot/NC 95 | 25 . 5 . . . . . . 25 10 . 30 Destroy Leader 314 | . 20 20 50 60 10 . . 10 84 10 . 50 Allied During Kill 536 | . . . . . . . . . 343 187 4 2 Successful Hack 96 | . . 5 12 14 . . . 3 46 . . 16 Disable Machine 300 | . . . . . . . . . . 15 30 255 Destroy Structure 150 | . 1 . . 7 . . . . 30 14 10 88 Partial Spotted 15 | . . . . . . . . . . . . 15 Lose Combat Pursuer 195 | . 90 15 15 . . . . . 75 . . . Influence Decreases 3248 | 20 211 145 242 301 70 . . 30 1154 472 200 403 Entered New Map 140 | . 2 4 27 . . . . . 2 59 46 . Time Decay 1828 | 20 189 131 145 205 40 . . 30 453 326 120 169 Lost Part 767 | . 20 10 70 96 30 . . . 283 10 14 234 Lost Ally 376 | . . . . . . . . . 279 77 20 . Purge Threat 137 | . . . . . . . . . 137 . . . Squads Dispatched 17 | . 1 . 2 4 . . 2 . 5 1 . 2 Investigation 9 | . 1 . 1 1 . . . . 4 1 . 1 Extermination 3 | . . . . 2 . . . . . . . 1 Reinforcement 3 | . . . 1 1 . . . . 1 . . . Assault 2 | . . . . . . . 2 . . . . . Garrison . | . . . . . . . . . . . . . Intercept . | . . . . . . . . . . . . . Searches Triggered . | . . . . . . . . . . . . . Construction Impeded 2 | . . . . 1 . . . . 1 . . . Haulers Reinforced . | . . . . . . . . . . . . . Active Scanning Responses . | . . . . . . . . . . . . . Cargo Convoy Interrupts . | . . . . . . . . . . . . . Stealth | -11 -10 -9 -8 -7 -7 -6 -5 -5 -5 -5 -5 -4 --------- Run | Yrd Mat Mat Mat Fac Low Zio Pro Fac Ext Cet Arc Fac Distress Signals 10 | . 1 . 2 . . . . . 3 3 . 1 Communications Jammed . | . . . . . . . . . . . . . Distress Signals . | . . . . . . . . . . . . . Times Spotted 142 | . 15 12 18 13 4 . . 2 38 11 7 22 Peak Tracking Total 9 | . 6 3 5 5 3 . . 1 7 5 2 9 Tactical Retreats 12 | . 5 1 1 . . . . . 5 . . . Traps | -11 -10 -9 -8 -7 -7 -6 -5 -5 -5 -5 -5 -4 ------- Run | Yrd Mat Mat Mat Fac Low Zio Pro Fac Ext Cet Arc Fac Traps Triggered 4 | . . 1 . . . . . . 2 . . 1 Indirectly . | . . . . . . . . . . . . . Trap Hack Attempts . | . . . . . . . . . . . . . Triggered . | . . . . . . . . . . . . . Disarmed . | . . . . . . . . . . . . . Reprogrammed . | . . . . . . . . . . . . . Reused . | . . . . . . . . . . . . . Traps Extracted . | . . . . . . . . . . . . . Installed . | . . . . . . . . . . . . . Triggered . | . . . . . . . . . . . . . Machines | -11 -10 -9 -8 -7 -7 -6 -5 -5 -5 -5 -5 -4 ---------- Run | Yrd Mat Mat Mat Fac Low Zio Pro Fac Ext Cet Arc Fac Machines Disabled 21 | . . . . . . . . . . 2 2 17 Max in Single Turn 12 | . . . . . . . . . . 1 1 12 Machines Repaired . | . . . . . . . . . . . . . Machines Dismantled . | . . . . . . . . . . . . . Machines Sabotaged . | . . . . . . . . . . . . . Overloaded Fab Kills . | . . . . . . . . . . . . . Hacking | -11 -10 -9 -8 -7 -7 -6 -5 -5 -5 -5 -5 -4 --------- Run | Yrd Mat Mat Mat Fac Low Zio Pro Fac Ext Cet Arc Fac Machines Accessed 33 | . 2 2 4 2 . . . 2 14 3 1 3 Terminals 30 | . 2 2 4 2 . . . 1 14 3 . 2 Fabricators 1 | . . . . . . . . 1 . . . . Repair Stations . | . . . . . . . . . . . . . Recycling Units . | . . . . . . . . . . . . . Scanalyzers 1 | . . . . . . . . . . . . 1 Garrison Access . | . . . . . . . . . . . . . Total Hacks 108 | . 7 8 9 4 . . . 3 35 10 25 7 Successful 56 | . 2 2 3 2 . . . 2 16 2 25 2 Failed 52 | . 5 6 6 2 . . . 1 19 8 . 5 Catastrophic 6 | . 1 1 1 . . . . . 2 1 . . Database Lockouts . | . . . . . . . . . . . . . Manual 24 | . 6 4 6 . . . . . 3 4 1 . Terminals 78 | . 7 8 9 4 . . . 1 35 10 . 4 Fabricators 2 | . . . . . . . . 2 . . . . Repair Stations . | . . . . . . . . . . . . . Recycling Units . | . . . . . . . . . . . . . Scanalyzers 3 | . . . . . . . . . . . . 3 Garrison Access . | . . . . . . . . . . . . . Terminal Hacks 51 | . 2 1 3 2 . . . 1 14 2 25 1 Record 30 | . . . . . . . . . 3 2 25 . Prototype ID Bank 3 | . 1 1 1 . . . . . . . . . Open Door 10 | . . . . . . . . 1 9 . . . Emergency Access Points 1 | . . . . . . . . . . . . 1 Scanalyzer Index 1 | . . . 1 . . . . . . . . . Unreport Threat 1 | . . . . . . . . . 1 . . . Locate Traps 1 | . . . . 1 . . . . . . . . Zone Layout 4 | . 1 . 1 1 . . . . 1 . . . Fabricator Hacks 1 | . . . . . . . . 1 . . . . Network Status 1 | . . . . . . . . 1 . . . . Repair Station Hacks . | . . . . . . . . . . . . . Recycling Unit Hacks . | . . . . . . . . . . . . . Scanalyzer 1 | . . . . . . . . . . . . 1 Retrieve Study 1 | . . . . . . . . . . . . 1 Garrison Access Hacks . | . . . . . . . . . . . . . Unauthorized Hacks 3 | . . 1 . . . . . . 2 . . . Terminals 3 | . . 1 . . . . . . 2 . . . Botnet 3 | . . 1 . . . . . . 2 . . . Fabricators . | . . . . . . . . . . . . . Repair Stations . | . . . . . . . . . . . . . Recycling Units . | . . . . . . . . . . . . . Scanalyzers . | . . . . . . . . . . . . . Garrison Access . | . . . . . . . . . . . . . Data Cores Recovered . | . . . . . . . . . . . . . Used . | . . . . . . . . . . . . . Hacking Detections 24 | . 1 2 4 2 . . . 2 6 4 . 3 Full Trace Events 10 | . 1 2 1 1 . . . . 3 1 . 1 Feedback Events 1 | . . 1 . . . . . . . . . . Corruption 1 | . . 1 . . . . . . . . . . Feedback Blocked . | . . . . . . . . . . . . . Robot Schematics Acquired . | . . . . . . . . . . . . . Robots Built . | . . . . . . . . . . . . . Authchips . | . . . . . . . . . . . . . Time . | . . . . . . . . . . . . . Total Robot Build Rating . | . . . . . . . . . . . . . Part Schematics Acquired . | . . . . . . . . . . . . . Parts Built . | . . . . . . . . . . . . . Authchips . | . . . . . . . . . . . . . Time . | . . . . . . . . . . . . . Total Part Build Rating . | . . . . . . . . . . . . . Part Studies Acquired 1 | . . . . . . . . . . . . 1 Parts Repaired . | . . . . . . . . . . . . . Time . | . . . . . . . . . . . . . Parts Recycled . | . . . . . . . . . . . . . Recycled Matter . | . . . . . . . . . . . . . Retrieved Matter . | . . . . . . . . . . . . . Retrieved Components . | . . . . . . . . . . . . . Parts Scanalyzed . | . . . . . . . . . . . . . Part Schematics Acquired . | . . . . . . . . . . . . . Parts Damaged . | . . . . . . . . . . . . . Bothacking | -11 -10 -9 -8 -7 -7 -6 -5 -5 -5 -5 -5 -4 ------------ Run | Yrd Mat Mat Mat Fac Low Zio Pro Fac Ext Cet Arc Fac Used RIF Installer . | . . . . . . . . . . . . . Robots Hacked 1 | . . . . . . . . . . . . 1 Non-combat . | . . . . . . . . . . . . . Combat . | . . . . . . . . . . . . . Robot Hacks Applied . | . . . . . . . . . . . . . Manual 1 | . . . . . . . . . . . . 1 Relay Couplers Released . | . . . . . . . . . . . . . Fabnet Peak Effective % . | . . . . . . . . . . . . . Robots Rewired 17 | . . . . . . . . . 17 . . . Allies Hacked 1 | . . . . . . . . . . . . 1 Hacks Repelled . | . . . . . . . . . . . . . Allies | -11 -10 -9 -8 -7 -7 -6 -5 -5 -5 -5 -5 -4 -------- Run | Yrd Mat Mat Mat Fac Low Zio Pro Fac Ext Cet Arc Fac Total Allies 35 | . . . . . . . . . 29 5 . 1 Largest Group 13 | . . . . . . . . . 12 13 4 1 Highest-Rated Group 860 | . . . . . . . . . 418 860 256 116 Highest-Rated Ally 159 | . . . . . . . . . 159 159 152 116 Total Orders . | . . . . . . . . . . . . . Ally Attacks 276 | . . . . . . . . . 175 81 15 5 Total Damage 5805 | . . . . . . . . . 3242 2126 230 207 Kills 33 | . . . . . . . . . 15 11 3 4 Allies Corrupted . | . . . . . . . . . . . . . Allies Melted 2 | . . . . . . . 2 . . . . . Intel | -11 -10 -9 -8 -7 -7 -6 -5 -5 -5 -5 -5 -4 ------- Run | Yrd Mat Mat Mat Fac Low Zio Pro Fac Ext Cet Arc Fac Active Infowar (turns) 5287 | . 526 518 199 317 173 . . 235 1755 722 428 414 Optics 3727 | . . . . . 173 . . 235 1755 722 428 414 Terrain 1560 | . 526 518 199 317 . . . . . . . . Robot Analysis Total . | . . . . . . . . . . . . . Derelict Logs Recovered 2 | . . . . . 1 . 1 . . . . . Drone Launches . | . . . . . . . . . . . . . Drone Recoveries . | . . . . . . . . . . . . . Exploration | -11 -10 -9 -8 -7 -7 -6 -5 -5 -5 -5 -5 -4 ------------- Run | Yrd Mat Mat Mat Fac Low Zio Pro Fac Ext Cet Arc Fac Turns Passed 7776 | 94 531 518 526 864 397 67 1158 238 1755 722 428 478 Spaces Moved 4253 | 55 240 215 229 431 360 68 870 170 802 388 221 204 Core 56 | 17 2 . . . . . . . . . . 37 Treads 1108 | . . . . . . . . . 348 388 221 151 Legs 1117 | 37 110 215 229 139 1 . . . 370 . . 16 Wheels 1972 | 1 128 . . 292 359 68 870 170 84 . . . Hover . | . . . . . . . . . . . . . Flight . | . . . . . . . . . . . . . Fastest Speed 50 | 50 95 190 190 100 100 100 100 115 115 160 160 50 Average Speed 138 | 107 183 194 190 140 100 100 100 115 139 160 175 158 Slowest Speed 850 | 150 850 260 190 260 330 100 100 115 330 160 240 400 Overloaded Moves . | . . . . . . . . . . . . . Propulsion Burnouts . | . . . . . . . . . . . . . Robots Hopped . | . . . . . . . . . . . . . Potential Cave-ins . | . . . . . . . . . . . . . Cave-ins Triggered . | . . . . . . . . . . . . . Exploration Rate (%) 42 | 4 49 26 23 15 65 10 91 5 76 79 99 11 Regions Visited 12 Branch Regions 6 Pre-discovered Areas . | . . . . . . . . . . . . . Known Exits Taken 7 | . . . . . 1 1 1 1 1 1 1 . Unknown Exits Taken 5 | 1 1 1 1 1 . . . . . . . . Scrap Searched 4 | . . . . . 1 . 3 . . . . . Spaces Dug . | . . . . . . . . . . . . . Terrain Destroyed 64 | . . . . 5 . . . . 12 . 2 45 Melee . | . . . . . . . . . . . . . Projectile 19 | . . . . . . . . . . . 2 17 AOE 45 | . . . . 5 . . . . 12 . . 28 Terrain Rammed . | . . . . . . . . . . . . . Walls Destroyed . | . . . . . . . . . . . . . Machines Disabled . | . . . . . . . . . . . . . Actions | -11 -10 -9 -8 -7 -7 -6 -5 -5 -5 -5 -5 -4 --------- Run | Yrd Mat Mat Mat Fac Low Zio Pro Fac Ext Cet Arc Fac Total 5580 | 78 292 273 275 609 376 67 1123 203 1258 491 252 283 Wait 591 | . 18 20 6 92 . . 233 24 90 84 14 10 Move 4241 | 54 239 214 228 430 359 67 869 169 801 387 220 204 Hop . | . . . . . . . . . . . . . Pick Up 94 | 11 5 7 11 13 1 . 6 . 30 5 4 1 Fast Attach 45 | . 3 . 2 4 2 . . 1 23 2 1 7 Attach 67 | 6 . 4 6 19 4 . . 6 10 . 1 11 Detach 3 | . . . . 2 . . . . . . . 1 Swap 56 | 1 6 4 2 6 . . 2 . 29 4 2 . Drop 56 | . . 1 . 5 2 . 1 . 32 8 5 2 Fire 194 | 6 21 20 20 37 8 . 12 3 30 . 5 32 Melee 87 | . . . . . . . . . 75 1 . 11 Ram 1 | . . . . 1 . . . . . . . . Kick 7 | . . 3 . . . . . . 4 . . . Crush 1 | . . . . . . . . . 1 . . . Escape Stasis . | . . . . . . . . . . . . . Rewire 137 | . . . . . . . . . 133 . . 4 Trap . | . . . . . . . . . . . . . Miscellaneous . | . . . . . . . . . . . . . Route ------- -11/Scrapyard -10/Materials (discovered 2 exits: *Mat / [*Min]) -9/Materials (discovered 2 exits: *Mat / [*Sto]) -8/Materials -7/Factory -7/Lower Caves -6/Zion -5/Proximity Caves -5/Factory (discovered 2 exits: Fac / *Ext) -5/Extension (discovered 3 exits: *Fac x2 / *Cet) -5/Cetus (discovered 3 exits: *Fac x2 / *Arc) -5/Archives (discovered 3 exits: *Fac / *Hub x2) -4/Factory History --------- Turn | Location | Event 11 | -11/Scrapyard | Discovered new exit (range 16) 95 | -11/Scrapyard | Entered Materials 258 | -10/Materials | Discovered new exit (range 14) 316 | -10/Materials | Build established: Mutant 566 | -10/Materials | Discovered new exit (range 16) 626 | -10/Materials | Entered another Materials area 626 | -9/Materials | Evolved 2 slots: Propulsion x2 626 | -9/Materials | Discovered new exit (range 14) 1127 | -9/Materials | Discovered new exit (range 10) 1144 | -9/Materials | Entered another Materials area 1144 | -8/Materials | Evolved 2 slots: Utility x1, Weapon x1 1393 | -8/Materials | Lost 6 parts (1p2n1u2w) 1633 | -8/Materials | Discovered new exit (range 15) 1670 | -8/Materials | Entered Factory 1670 | -7/Factory | Evolved 2 slots: Utility x2 1699 | -7/Factory | Lost 3 parts (1n2w) 1957 | -7/Factory | Lost 3 parts (2n1w) 2094 | -7/Factory | Lost 7 parts (1p4n2w) 2245 | -7/Factory | Lost 3 parts (1u2w) 2438 | -7/Factory | Discovered new exit (range 13) 2515 | -7/Factory | Build established: Scavenger-Gunner 2534 | -7/Factory | Entered Lower Caves 2538 | -7/Lower Caves | Learned Factory trap positions 2769 | -7/Lower Caves | Lost 6 parts (1p2n1u2w) 2872 | -7/Lower Caves | Attracted the attention of an 0b10 checkpoint 2928 | -7/Lower Caves | A Derelict revealed a hidden shortcut to a safe place 2930 | -7/Lower Caves | Identified exit to Zion 2931 | -7/Lower Caves | Entered Zion 2987 | -6/Zion | Discovered new exit (range 11) 2997 | -6/Zion | Identified exit to Proximity Caves 2998 | -6/Zion | Entered Proximity Caves 3106 | -5/Proximity Caves | Received a Behemoth hack from an annoying Tinkerer 3518 | -5/Proximity Caves | Derelict sapper outpost attacked 3952 | -5/Proximity Caves | Learned 4 Factory zone layouts 3976 | -5/Proximity Caves | Encountered a Derelict sapper outpost 4051 | -5/Proximity Caves | Discovered new exit (range 8) 4139 | -5/Proximity Caves | Build established: Gunner 4155 | -5/Proximity Caves | Identified exit to Factory 4156 | -5/Proximity Caves | Entered Factory 4156 | -5/Factory | Evolved 4 slots: Power x1, Utility x3 4157 | -5/Factory | Identified exit to Extension 4157 | -5/Factory | Identified exit to Factory 4158 | -5/Factory | Loaded intel: 78 trap records 4394 | -5/Factory | Entered Extension 4446 | -5/Extension | Build established: Scavenger-Gunner 4448 | -5/Extension | Rescued a captive Derelict 4543 | -5/Extension | Lost 5 allies 4579 | -5/Extension | Lost 6 parts (1p3n2w) 4772 | -5/Extension | Lost 6 parts (1p1n1u3w) 4818 | -5/Extension | Rescued a captive Derelict 4868 | -5/Extension | Build established: Scavenger-Mutant 5140 | -5/Extension | Rescued a captive Derelict 5140 | -5/Extension | Rescued a captive Derelict 5301 | -5/Extension | Rescued a captive Derelict 5301 | -5/Extension | Rescued a captive Derelict 5345 | -5/Extension | Lost 3 allies 5384 | -5/Extension | Spotted B-75 Beast 5387 | -5/Extension | Spotted B-75 Beast 5405 | -5/Extension | Core integrity fell below 50% 5406 | -5/Extension | Allies destroyed B-75 Beast 5428 | -5/Extension | Allies destroyed B-75 Beast 5451 | -5/Extension | Lost 9 parts (2p4n1u2w) 5681 | -5/Extension | Discovered exit to Factory (range 4) 5730 | -5/Extension | Rescued a captive Derelict 5731 | -5/Extension | Rescued a captive Derelict 5741 | -5/Extension | Build established: Scavenger-Gunner 5758 | -5/Extension | Rescued a captive Derelict 5760 | -5/Extension | Rescued a captive Derelict 5799 | -5/Extension | Lost 3 allies 5817 | -5/Extension | Lost 3 parts (1p1n1w) 5931 | -5/Extension | Rescued A7 6030 | -5/Extension | Rescued a captive Derelict 6073 | -5/Extension | Build established: Scavenger-Mutant 6088 | -5/Extension | Discovered exit to Factory (range 10) 6090 | -5/Extension | Discovered new exit (range 6) 6099 | -5/Extension | Identified exit to Cetus 6149 | -5/Extension | Entered Cetus 6149 | -5/Cetus | Accompanied by 9 allies (A7) 6154 | -5/Cetus | Acquired a Cetus Manufacturing Module code from A7 6168 | -5/Cetus | Spotted Cetus Guard 6168 | -5/Cetus | Spotted Cetus Guard 6170 | -5/Cetus | Spotted Cetus Guard 6170 | -5/Cetus | Spotted Cetus Guard 6179 | -5/Cetus | Core integrity fell below 20% 6180 | -5/Cetus | Allies destroyed Cetus Guard 6180 | -5/Cetus | Allies destroyed Cetus Guard 6186 | -5/Cetus | Allies destroyed Cetus Guard 6250 | -5/Cetus | Started Cetus Manufacturing Module 6275 | -5/Cetus | Manufactured an Enhanced Grunt 6300 | -5/Cetus | Manufactured an Enhanced Grunt 6325 | -5/Cetus | Manufactured an Enhanced Grunt 6350 | -5/Cetus | Manufactured an Enhanced Grunt 6375 | -5/Cetus | Manufactured an Enhanced Grunt 6527 | -5/Cetus | Discovered exit to Factory (range 19) 6658 | -5/Cetus | Discovered new exit (range 19) 6687 | -5/Cetus | Identified exit to Archives 6725 | -5/Cetus | Spotted Cetus Guard 6725 | -5/Cetus | Spotted Cetus Guard 6725 | -5/Cetus | Spotted Cetus Guard 6728 | -5/Cetus | Spotted Cetus Guard 6738 | -5/Cetus | Allies destroyed Cetus Guard 6742 | -5/Cetus | Allies destroyed Cetus Guard 6749 | -5/Cetus | Allies destroyed Cetus Guard 6750 | -5/Cetus | Allies destroyed Cetus Guard 6760 | -5/Cetus | Discovered exit to Factory (range 20) 6780 | -5/Cetus | Lost 4 allies 6781 | -5/Cetus | Met Revision 17 6871 | -5/Cetus | Entered Archives 6871 | -5/Archives | Accompanied by 4 allies (A7) 6993 | -5/Archives | Discovered exit to Factory (range 20) 6998 | -5/Archives | Discovered new exit (range 18) 7017 | -5/Archives | Discovered new exit (range 15) 7069 | -5/Archives | Unable to access archive contents 7085 | -5/Archives | Unable to access archive contents 7146 | -5/Archives | Unable to access archive contents 7162 | -5/Archives | Unable to access archive contents 7186 | -5/Archives | Identified exit to Hub_04(d) 7206 | -5/Archives | Build established: Scavenger-Gunner 7299 | -5/Archives | Entered Factory 7299 | -4/Factory | Accompanied by 1 ally 7299 | -4/Factory | Evolved 2 slots: Utility x2 7563 | -4/Factory | Lost 7 parts (2n4u1w) 7574 | -4/Factory | Spotted B-86 Titan 7621 | -4/Factory | System corruption reached 10% 7720 | -4/Factory | Core integrity fell below 50% 7749 | -4/Factory | Befriended a Behemoth using the annoying Tinkerer's hack 7763 | -4/Factory | P-70 Sage assimilated allied B-86 Titan 7768 | -4/Factory | Lost 23 parts (2p5n7u9w) 7769 | -4/Factory | Core integrity fell below 20% 7777 | -4/Factory | Destroyed by S-27 Virus with Autogun Last Messages --------------- 07770_ U-05 Engineer lays Concrete. 07771_ LTX6NH|LELTMEW4PZV4F 07771_ U-05 Engineer lays Concrete. 07771_ P-70 Sage resets B-86 Titan, system corruption cleaned. 07771_ U-05 Engineer lays Concrete. 07771_ K-01 Serf collects debris. 07771_ Jacked B-86 Titan... 07771_ Command string: \\E9A9 07771_ No effect. 07771_ U-05 Engineer lays Concrete. 07774_ U-05 Engineer builds a Wall. 07774_ U-05 Engineer lays Concrete. 07775_ K-01 Serf collects debris. 07775_ U-05 Engineer lays Concrete. 07775_ P-70 Sage resets W-44 Eye, system corruption cleaned. 07775_ U-05 Engineer lays Concrete. 07777_ P-70 Sage resets B-86 Titan, system corruption cleaned. Map ----- +----------------------------------------------------+ | ?????????????????????????????????????????????????? | | ?????????????????????????????????????????????????? | | ?????????????????????????????????????????????????? | | ?????????????????????????????????????????????????? | | ?????????????????????????????????????????????????? | | ?????????????????????????????????????????????????? | | ?????????????????????????????????????????????????? | | ?????????????????????????????????????????????????? | | ?????????????????????????????????????????????????? | | ?????????????????????????????????????????????????? | | ??????????????????????? ??????????????????????? | | ?????????????????????# ??????????????????????? | | ?????????????????????# ??????????????????????? | | ?????????????????????# #?????????????????????? | | ??????????????????##?# #?????????????????????? | | ????????????????###;## #?????????????????????? | | ????????????????? A #?????????????????????? | | ?????????????????? g #????????????????????## | | ??????????????????? #????????????????????# | | ???????????????????? #??????###??######???# | | ????????????????????? #?????"""#??# """ ???# | | ????????????????????##sp ##????"Y"####""F""#??# | | ????????????????????#;ssR ;#####"* ;;; " ""#### | | ???????????????????### s # | | ???????????????????# ; u # | | ???????????????????# # @ !!!# | | ???????????????????###% ! # | | ???????????????????# ! # | | ???????????????????# %% k%* t # | | ???????????????????### % ## | | ???????????????????# # | | ???????????????????### u!BB | | ????????????????????## *%BB % u | | ???????????????####### = % | | ?????????? w | | ????????????????########+## ;/; ############### | | ??????????????????# ; p ###??# | | ??????????????????# ; % ! " #??# | | ??????????????????# ! %; *% ! ###??# | | ??????????????????# %# =% #????# | | ??????????????????# !!! # %= ##???# | | ??????????????????# !!! # % = !!"#???# | | ??????????????????#= !! + !!##???# | | ??????????????????# # %! #????? | | ??????????????????# * # ! ###### | | ??????????????????# " [ # *%! / | | ??????????????????# "R" # ###### | | ??????????????????# """ # #????? | | ????????????????????#####+#############"#####????? | | ????????????????????????# ????? ??????? ???????? | +----------------------------------------------------+ Best States ------------- Heat Dissipation 78 Energy Generation 43 Energy Capacity 590 Matter Stores 300 Matter Capacity 300 Sight Range 20 Terrain Scan Range 14 Terrain Scan Density 210 Armor Coverage 450 Core Shielding 30 Phase Shifting 5 Evasion (%) 55 Targeting Accuracy 16 Core Analysis 6 Armor Integrity Analysis 30 Recoil Reduction 4 Offensive Hacking 10 Item Schematics ----------------- None Robot Schematics ------------------ None Fabricated ------------ Nothing Repaired ---------- Nothing Studied --------- Imp. Treads | -4/Factory | Hacked Alien Tech Used ----------------- None Achievements -------------- Fancy Inventory It Was An Accident, I Swear Project G-00 Revising The Future Woof! Challenges ------------ None Game ------ Seed DispersalBladeWand Manual? 0 Play Time 01:22:31 Cumulative 59.0 hours Start 2026.07.29 @ 11:19:03 End 2026.07.29 @ 13:04:39 Sessions 1 Manual Loads 0 Difficulty Rogue Special Mode None Game No. 101 Rogue 101 Adventurer 0 Explorer 0 Win Type - Total 0 Types 0/0/0/0/0/0/0/0/0/0 Lore% 34 Gallery% 36 Achievement% 29 Wizard Run 0 Options --------- Layout 1 ASCII 0 Keyboard 0 Movement Mouse Keybinds 0 Fullscreen 2 Font 24/Smallcaps Map View 50x35 Zoom Use 0% Tactical HUD 1 Map Filters NONE Filters NONE Steam 1 RUN: f7297050-4314-4aed-9734-f82cec2b7ba3